bitfinex-derivatives/quotes_BTCF0:USTF0_20260119
["timestamp","ask_amount","ask_price","bid_price","bid_amount"]
[1768789947043,0.10948547,92540.0,92519.0,0.21189882]
[1768789947645,0.10948547,92540.0,92519.0,0.22271182]
[1768789949235,0.10948547,92540.0,92522.0,0.010813]
[1768789949441,0.10948547,92544.0,92526.0,0.09300822]
[1768789949640,0.02197093,92543.0,92526.0,0.09300822]
[1768789949841,0.10948547,92549.0,92527.0,0.09300822]
[1768789950041,0.10948547,92547.0,92527.0,0.09300822]
[1768789950241,0.02197092,92546.0,92527.0,0.09300822]
[1768789950446,0.02197092,92545.0,92527.0,0.09300822]
[1768789950646,0.02197092,92544.0,92527.0,0.09300822]
[1768789950843,0.00016212,92553.0,92536.0,0.1188906]
[1768789951039,0.02196946,92552.0,92543.0,0.10381822]
[1768789951239,0.02196946,92551.0,92543.0,0.10381822]
[1768789951436,0.02196946,92550.0,92543.0,0.10381822]
[1768789951739,0.00016212,92553.0,92543.0,0.10381822]
[1768789951940,0.02196823,92552.0,92543.0,0.09300822]
[1768789952140,0.02196826,92551.0,92537.0,0.1297016]
[1768789952335,0.00016212,92553.0,92540.0,0.1297006]
[1768789952535,0.02197036,92552.0,92543.0,0.01081]
[1768789952750,0.02197036,92551.0,92543.0,0.10381822]
[1768789952947,0.00016212,92553.0,92543.0,0.10381822]
[1768789953146,0.02197033,92552.0,92543.0,0.10381822]
[1768789953348,0.02197033,92551.0,92543.0,0.10381822]
[1768789953546,0.00016212,92553.0,92543.0,0.10381822]
[1768789953747,0.00016212,92553.0,92543.0,0.09300822]
[1768789953748,0.02197282,92552.0,92543.0,0.09300822]
[1768789953946,0.02197282,92551.0,92543.0,0.09300822]
[1768789954147,0.02197282,92550.0,92543.0,0.09300822]
[1768789954342,0.00016212,92553.0,92543.0,0.09300822]
[1768789954542,0.02197425,92552.0,92543.0,0.09300822]
[1768789954848,0.02197425,92551.0,92543.0,0.09300822]
[1768789955044,0.02197425,92550.0,92543.0,0.09300822]
[1768789955239,0.00016212,92553.0,92543.0,0.09300822]
[1768789955441,0.02197443,92552.0,92543.0,0.09300822]
[1768789955740,0.02197443,92551.0,92543.0,0.09300822]
[1768789955940,0.02197443,92550.0,92543.0,0.09300822]
[1768789956241,0.02197443,92549.0,92543.0,0.09300822]
[1768789956441,0.00016212,92553.0,92537.0,0.10381922]
[1768789956648,0.12029447,92551.0,92537.0,0.09300822]
[1768789956848,0.02197455,92550.0,92534.0,0.09300822]
[1768789957048,0.02197455,92549.0,92535.0,0.09300822]
[1768789957247,0.02197455,92548.0,92535.0,0.09300822]
[1768789957447,0.10948547,92550.0,92535.0,0.09300822]
[1768789957643,0.13146089,92549.0,92530.0,0.09300822]
[1768789957842,0.13146089,92548.0,92530.0,0.19032822]
[1768789958045,0.10948547,92548.0,92530.0,0.19032822]
[1768789958451,0.12029547,92548.0,92530.0,0.19032822]
[1768789958647,0.12029547,92548.0,92530.0,0.09732]
[1768789958944,0.10999828,92544.0,92530.0,0.09732]
[1768789960549,0.10999828,92544.0,92528.0,0.00016212]
[1768789960550,0.10999828,92540.0,92528.0,0.00016212]
[1768789962148,0.010811,92539.0,92528.0,0.00016212]
[1768789962548,0.12080928,92536.0,92524.0,0.09969776]
[1768789963051,0.12080928,92536.0,92524.0,0.00237776]
[1768789964056,0.010811,92536.0,92524.0,0.00237776]
[1768789964258,0.12080928,92540.0,92524.0,0.00237776]
[1768789964444,0.010811,92536.0,92524.0,0.00237776]
[1768789965352,0.010811,92539.0,92524.0,0.00237776]
[1768789965653,0.10999828,92540.0,92524.0,0.09325583]
[1768789965857,0.01081,92546.0,92526.0,0.09087807]
[1768789966056,0.02222435,92545.0,92527.0,0.09087807]
[1768789966258,0.02222435,92544.0,92527.0,0.09087807]
[1768789966556,0.02222435,92543.0,92527.0,0.09087807]
[1768789966747,0.10999828,92547.0,92528.0,0.09087807]
[1768789966951,0.02222322,92546.0,92528.0,0.09087807]
[1768789967250,0.02222322,92545.0,92528.0,0.09087807]
[1768789967450,0.02222322,92544.0,92529.0,0.09087807]
[1768789967756,0.09732,92552.0,92524.0,0.00237776]
[1768789967757,0.09732,92547.0,92534.0,0.09087807]
[1768789967954,0.02222182,92546.0,92534.0,0.09087807]
[1768789968154,0.02222182,92545.0,92534.0,0.09087807]
[1768789968357,0.09732,92547.0,92534.0,0.09087807]
[1768789968555,0.02222178,92546.0,92534.0,0.09087807]
[1768789968756,0.02222178,92545.0,92534.0,0.09087807]
[1768789968951,0.09732,92547.0,92534.0,0.09087807]
[1768789969152,0.02222184,92546.0,92534.0,0.09087807]
[1768789969353,0.02222184,92545.0,92535.0,0.09087807]
[1768789969551,0.09732,92547.0,92535.0,0.09087807]
[1768789969751,0.02222229,92546.0,92535.0,0.09087807]
[1768789969951,0.02222229,92545.0,92536.0,0.09087807]
[1768789970153,0.09732,92547.0,92536.0,0.09087807]
[1768789970354,0.02222236,92546.0,92536.0,0.09087807]
[1768789970556,0.02222236,92545.0,92536.0,0.09087807]
[1768789970756,0.02222236,92544.0,92536.0,0.09087807]
[1768789970958,0.09732,92551.0,92536.0,0.09087807]
[1768789971157,0.02222252,92550.0,92536.0,0.09087807]
[1768789971453,0.02222252,92549.0,92536.0,0.09087807]
[1768789971650,0.00016212,92553.0,92524.0,0.00237776]
[1768789971651,0.02222252,92548.0,92540.0,0.09087807]
[1768789971844,0.02222252,92547.0,92540.0,0.09087807]
[1768789972044,0.02222252,92546.0,92540.0,0.09087807]
[1768789972254,0.09732,92552.0,92540.0,0.09087807]
[1768789972456,0.02222331,92551.0,92540.0,0.09087807]
[1768789972651,0.02222331,92550.0,92540.0,0.09087807]
[1768789972854,0.02222331,92549.0,92540.0,0.09087807]
[1768789973050,0.02222331,92548.0,92540.0,0.09087807]
[1768789973250,0.02222331,92547.0,92540.0,0.09087807]
[1768789973460,0.02222331,92546.0,92540.0,0.09087807]
[1768789973649,0.09732,92552.0,92541.0,0.09378776]
[1768789973849,0.02233122,92551.0,92541.0,0.09378776]
[1768789974049,0.02233122,92550.0,92541.0,0.09378776]
[1768789974258,0.02233122,92549.0,92541.0,0.09378776]
[1768789974455,0.02233122,92548.0,92541.0,0.09378776]
[1768789974657,0.02233122,92547.0,92541.0,0.09378776]
[1768789974857,0.09732,92552.0,92541.0,0.09378776]
[1768789974858,0.02233122,92546.0,92541.0,0.09378776]
[1768789975057,0.00016212,92553.0,92541.0,0.21197722]
[1768789975258,0.02233205,92552.0,92542.0,0.09378776]
[1768789975454,0.02233205,92551.0,92542.0,0.09378776]
[1768789975655,0.02233205,92550.0,92542.0,0.09378776]
[1768789975856,0.00016212,92553.0,92542.0,0.09378776]
[1768789975857,0.02233205,92549.0,92542.0,0.09378776]
[1768789976057,0.10802764,92560.0,92538.0,0.010811]
[1768789976058,0.09732,92556.0,92545.0,0.09378776]
[1768789976562,0.09732,92556.0,92548.0,0.09378776]
[1768789977059,0.010807,92568.0,92550.0,0.21197722]
[1768789977260,0.09969673,92564.0,92552.0,0.09378776]
[1768789977458,0.00237673,92564.0,92554.0,0.09378776]
[1768789977654,0.09969662,92569.0,92554.0,0.09378776]
[1768789978454,0.09969662,92569.0,92555.0,0.11818946]
[1768789978661,0.09969662,92569.0,92556.0,0.09378776]
[1768789979653,0.010806,92578.0,92559.0,0.09378776]
[1768789979855,0.010806,92578.0,92558.0,0.11818946]
[1768789979856,0.010806,92578.0,92561.0,0.09378776]
[1768789980060,0.010806,92578.0,92562.0,0.11818946]
[1768789980260,0.010807,92572.0,92557.0,0.09378776]
[1768789980454,0.010807,92572.0,92559.0,0.09378776]
[1768789980656,0.010807,92572.0,92560.0,0.09378776]
[1768789981263,0.11883464,92567.0,92553.0,0.09732]
[1768789981865,0.010807,92567.0,92553.0,0.09732]
[1768789982860,0.108127,92574.0,92557.0,0.09378776]
[1768789983162,0.07528793,92579.0,92564.0,0.11818946]
[1768789983370,0.09732,92585.0,92569.0,0.09378776]
[1768789983567,0.09732,92585.0,92570.0,0.11818946]
[1768789983752,0.010805,92587.0,92570.0,0.11818946]
[1768789984461,0.09732,92589.0,92570.0,0.11818946]
[1768789985460,0.09732,92589.0,92571.0,0.09378776]
[1768789986068,0.010805,92588.0,92571.0,0.09378776]
[1768789986371,0.09732,92589.0,92571.0,0.09378776]
[1768789986568,0.09732,92589.0,92574.0,0.09378776]
[1768789986876,0.09732,92589.0,92576.0,0.09378776]
[1768789987473,0.09732,92589.0,92575.0,0.11818946]
[1768789987474,0.0777137,92596.0,92579.0,0.09378776]
[1768789987677,0.0777137,92596.0,92579.0,0.12459098]
[1768789987873,0.09728,92595.0,92579.0,0.12459098]
[1768789988075,0.09728,92597.0,92579.0,0.12459098]
[1768789988372,0.09728,92597.0,92579.0,0.11818946]
[1768789988674,0.0777137,92601.0,92581.0,0.11818946]
[1768789988874,0.0777137,92602.0,92583.0,0.11818946]
[1768789989069,0.0777137,92603.0,92583.0,0.11818946]
[1768789989275,0.08008941,92604.0,92583.0,0.11818946]
[1768789989472,0.00237571,92604.0,92583.0,0.11818946]
[1768789989673,0.00237571,92604.0,92585.0,0.11818946]
[1768789989873,0.00237571,92604.0,92586.0,0.09378776]
[1768789990283,0.00237571,92604.0,92588.0,0.09378776]
[1768789990477,0.00237571,92604.0,92590.0,0.09378776]
[1768789990672,0.00237571,92604.0,92591.0,0.11818946]
[1768789990881,0.00237571,92604.0,92593.0,0.11818946]
[1768789991070,0.00237571,92604.0,92593.0,0.21197722]
[1768789994684,0.00237571,92604.0,92593.0,0.09378776]
[1768789995378,0.00237571,92604.0,92590.0,0.11818946]
[1768789996371,0.00237571,92604.0,92591.0,0.09378776]
[1768789996575,0.00237571,92604.0,92592.0,0.21197722]
[1768789996777,0.00237571,92604.0,92593.0,0.11818946]
[1768789996974,0.00237571,92604.0,92592.0,0.09378776]
[1768789997184,0.00237571,92604.0,92592.0,0.21197722]
[1768789997780,0.00237571,92604.0,92593.0,0.11818946]
[1768789998190,0.09728,92607.0,92596.0,0.09378776]
[1768789998390,0.09728,92607.0,92598.0,0.11818946]
[1768789999983,0.0108,92627.0,92604.0,0.11818946]
[1768790000188,0.0408,92627.0,92607.0,0.11818946]
[1768790000490,0.0408,92627.0,92608.0,0.11818946]
[1768790000680,0.0408,92627.0,92609.0,0.11818946]
[1768790001086,0.03,92627.0,92609.0,0.11818946]
[1768790001286,0.09965508,92629.0,92608.0,0.09394979]
[1768790001287,0.00237508,92629.0,92619.0,0.11818946]
[1768790002482,0.00237508,92629.0,92619.0,0.2139835]
[1768790002688,0.09728,92637.0,92624.0,0.10962353]
[1768790002984,0.09728,92637.0,92624.0,0.09579404]
[1768790003184,0.010799,92643.0,92624.0,0.09579404]
[1768790003382,0.050799,92643.0,92624.0,0.09579404]
[1768790003580,0.14293928,92643.0,92621.0,0.09579404]
[1768790003784,0.050799,92643.0,92621.0,0.09579404]
[1768790004592,0.010799,92640.0,92621.0,0.09579404]
[1768790004788,0.0108,92632.0,92620.0,0.09728]
[1768790004994,0.0108,92632.0,92616.0,0.09579404]
[1768790005193,0.0108,92632.0,92617.0,0.09724]
[1768790005394,0.0108,92632.0,92616.0,0.09579404]
[1768790005597,0.010801,92622.0,92608.0,0.00016203]
[1768790005896,0.010801,92626.0,92609.0,0.09724]
[1768790006089,0.010801,92626.0,92608.0,0.00016203]
[1768790006395,0.12296756,92626.0,92609.0,0.09724]
[1768790006695,0.010801,92623.0,92609.0,0.09724]
[1768790006886,0.14567372,92620.0,92609.0,0.09724]
[1768790007288,0.14567372,92630.0,92615.0,0.20541757]
[1768790007493,0.010799,92638.0,92623.0,0.09579404]
[1768790007791,0.14567372,92633.0,92623.0,0.09579404]
[1768790010588,0.14567372,92633.0,92619.0,0.09724]
[1768790010892,0.14567372,92630.0,92619.0,0.09724]
[1768790011400,0.14567372,92630.0,92621.0,0.09579404]
[1768790013404,0.14567372,92631.0,92621.0,0.09579404]
[1768790013698,0.14567372,92631.0,92621.0,0.19303404]
[1768790015804,0.0108,92635.0,92621.0,0.09724]
[1768790016004,0.14567372,92631.0,92621.0,0.09724]
[1768790016307,0.09214028,92642.0,92621.0,0.09724]
[1768790016308,0.07743173,92649.0,92633.0,0.09579404]
[1768790016503,0.14567372,92643.0,92634.0,0.09579404]
[1768790016698,0.08008831,92642.0,92635.0,0.09724]
[1768790016899,0.08008831,92642.0,92631.0,0.09724]
[1768790017108,0.14567372,92641.0,92631.0,0.09724]
[1768790017317,0.14567372,92641.0,92629.0,0.09740193]
[1768790018006,0.14567372,92639.0,92629.0,0.09740193]
[1768790019209,0.14567372,92639.0,92629.0,0.00016193]
[1768790026102,0.010799,92638.0,92629.0,0.00016193]
[1768790027306,0.010799,92637.0,92628.0,9.3e-07]
[1768790027503,0.11612297,92624.0,92609.0,0.02888983]
[1768790027706,0.14567372,92620.0,92608.0,0.0972]
[1768790027906,0.14567372,92618.0,92608.0,0.0972]
[1768790028410,0.10795999,92617.0,92608.0,0.0972]
[1768790028611,0.11876199,92617.0,92604.0,0.00016193]
[1768790028813,0.010802,92613.0,92604.0,9.3e-07]
[1768790029007,0.010802,92613.0,92603.0,9.3e-07]
[1768790029213,0.10795999,92612.0,92603.0,9.3e-07]
[1768790029413,0.10795999,92613.0,92603.0,9.3e-07]
[1768790029910,0.010802,92609.0,92596.0,0.02888983]
[1768790030111,0.010803,92602.0,92589.0,1.1e-07]
[1768790030315,0.26179669,92606.0,92579.0,0.05823193]
[1768790030316,0.26179669,92600.0,92585.0,0.09724]
[1768790030515,0.14567372,92600.0,92585.0,0.09724]
[1768790030712,0.10795999,92599.0,92585.0,0.09724]
[1768790031116,0.10795999,92598.0,92585.0,0.09724]
[1768790031312,0.10795999,92599.0,92585.0,0.09724]
[1768790031615,0.010804,92598.0,92585.0,0.09724]
[1768790031813,0.010804,92594.0,92580.0,0.1918103]
[1768790032111,0.010804,92594.0,92578.0,0.00012847]
[1768790032112,0.010805,92588.0,92578.0,4.7e-07]
[1768790032313,0.11612297,92587.0,92562.0,0.15280223]
[1768790032508,0.11612297,92587.0,92561.0,0.11651727]
[1768790032509,0.14567372,92580.0,92563.0,0.1918103]
[1768790032815,0.14567372,92580.0,92564.0,0.09355098]
[1768790033021,0.010807,92573.0,92557.0,0.05823193]
[1768790033317,0.14567372,92570.0,92554.0,0.19079098]
[1768790034019,0.14567372,92564.0,92551.0,0.05823193]
[1768790034206,0.11725411,92568.0,92548.0,0.09355098]
[1768790034207,0.10795999,92563.0,92548.0,0.09355098]
[1768790034411,0.11876699,92567.0,92548.0,0.09355098]
[1768790034815,0.10795999,92566.0,92548.0,0.09355098]
[1768790035011,0.10795999,92566.0,92557.0,0.09355098]
[1768790035212,0.010806,92579.0,92547.0,0.05823193]
[1768790035213,0.09724,92576.0,92560.0,0.20265877]
[1768790035517,0.09724,92576.0,92561.0,0.09355098]
[1768790035920,0.17732831,92576.0,92561.0,0.09355098]
[1768790036211,0.09724,92576.0,92561.0,0.09355098]
[1768790037019,0.08008831,92575.0,92561.0,0.09355098]
[1768790037215,0.17732831,92576.0,92561.0,0.09355098]
[1768790037415,0.09724,92576.0,92561.0,0.09355098]
[1768790038029,0.17732831,92576.0,92561.0,0.09355098]
[1768790038227,0.09724,92576.0,92561.0,0.09355098]
[1768790039123,0.11725411,92582.0,92561.0,0.09355098]
[1768790039323,0.08008831,92579.0,92561.0,0.09355098]
[1768790039822,0.08008831,92578.0,92561.0,0.09355098]
[1768790040028,0.08008831,92579.0,92561.0,0.09355098]
[1768790040333,0.08008831,92579.0,92569.0,0.14567372]
[1768790040528,0.09724,92580.0,92563.0,0.09355098]
[1768790040836,0.08008831,92577.0,92570.0,0.14567372]
[1768790041033,0.09724,92580.0,92567.0,0.14567372]
[1768790041224,0.08008831,92577.0,92564.0,0.20043986]
[1768790041528,0.09724,92580.0,92564.0,0.20043986]
[1768790041734,0.08008831,92578.0,92564.0,0.20043986]
[1768790041930,0.08008831,92578.0,92564.0,0.09355098]
[1768790042137,0.08008831,92577.0,92564.0,0.09355098]
[1768790042335,0.08008831,92578.0,92564.0,0.09355098]
[1768790042835,0.08008831,92577.0,92564.0,0.09355098]
[1768790043029,0.09724,92580.0,92564.0,0.09355098]
[1768790043339,0.09724,92580.0,92570.0,0.14567372]
[1768790043543,0.08008831,92574.0,92570.0,0.14567372]
[1768790043733,0.08008831,92574.0,92564.0,0.2392247]
[1768790043932,0.09724,92580.0,92564.0,0.2392247]
[1768790044233,0.08008831,92577.0,92570.0,0.14567372]
[1768790044433,0.08008831,92577.0,92564.0,0.09355098]
[1768790044434,0.08008831,92577.0,92567.0,0.14567372]
[1768790044624,0.08008831,92576.0,92567.0,0.14567372]
[1768790044825,0.09724,92580.0,92567.0,0.14567372]
[1768790045035,0.08008831,92575.0,92570.0,0.14567372]
[1768790045339,0.08008831,92577.0,92565.0,0.14567372]
[1768790045741,0.08008831,92575.0,92565.0,0.14567372]
[1768790046044,0.08008831,92576.0,92566.0,0.21216169]
[1768790046227,0.08008831,92576.0,92566.0,0.35783541]
[1768790046430,0.21405088,92587.0,92566.0,0.35783541]
[1768790046626,0.09728,92583.0,92570.0,0.14567372]
[1768790047037,0.09728,92593.0,92576.0,0.09355098]
[1768790047232,0.09728,92593.0,92580.0,0.14567372]
[1768790050444,0.09679677,92599.0,92580.0,0.14567372]
[1768790050648,0.09728,92602.0,92589.0,0.14567372]
[1768790051340,0.21453411,92602.0,92582.0,0.09355098]
[1768790051644,0.21453411,92602.0,92590.0,0.14567372]
[1768790051945,0.010804,92599.0,92590.0,0.14567372]
[1768790053043,0.108083,92602.0,92590.0,0.14567372]
[1768790053430,0.00237559,92609.0,92590.0,0.14567372]
[1768790053633,0.09728,92614.0,92598.0,0.14567372]
[1768790053837,0.108081,92620.0,92601.0,0.21216169]
[1768790054042,0.108081,92620.0,92602.0,0.11861071]
[1768790054241,0.108081,92620.0,92610.0,0.14567372]
[1768790055337,0.0108,92630.0,92610.0,0.26428443]
[1768790055537,0.09728,92631.0,92620.0,0.14567372]
[1768790055731,0.10808,92631.0,92613.0,0.11861071]
[1768790055938,0.11725411,92620.0,92600.0,0.09728]
[1768790056136,0.09679677,92617.0,92600.0,0.24295372]
[1768790056946,0.21405088,92617.0,92600.0,0.09728]
[1768790057146,0.010801,92622.0,92600.0,0.30944169]
[1768790057447,0.010801,92620.0,92600.0,0.30944169]
[1768790057939,0.010801,92620.0,92600.0,0.19083098]
[1768790058247,0.12805611,92617.0,92600.0,0.09728]
[1768790058441,0.11725411,92616.0,92600.0,0.09728]
[1768790058637,0.09728,92631.0,92593.0,0.21216169]
[1768790058638,0.11725411,92614.0,92593.0,0.21216169]
[1768790058841,0.11725411,92608.0,92594.0,0.09724]
[1768790059236,0.09679677,92607.0,92594.0,0.09724]
[1768790059842,0.22485388,92606.0,92591.0,0.00016202]
[1768790060149,0.11725411,92604.0,92591.0,0.00016202]
[1768790060343,0.09679677,92604.0,92591.0,0.00016202]
[1768790061246,0.21405088,92604.0,92591.0,0.00016202]
[1768790061447,0.21405088,92603.0,92591.0,0.00016202]
[1768790061748,0.21405088,92602.0,92591.0,0.00016202]
[1768790062553,0.09666519,92600.0,92591.0,0.00016202]
[1768790062739,0.09724,92608.0,92575.0,0.10872522]
[1768790062740,0.2156217,92598.0,92575.0,0.10872522]
[1768790063046,0.11895651,92597.0,92576.0,0.09724]
[1768790063447,0.2156217,92593.0,92571.0,0.10872522]
[1768790063651,0.2156217,92593.0,92568.0,0.09213422]
[1768790063652,0.11895651,92591.0,92572.0,0.09724]
[1768790064054,0.11911853,92591.0,92572.0,0.09724]
[1768790064551,0.00016202,92591.0,92573.0,0.20085944]
[1768790065051,0.00016202,92591.0,92572.0,0.09724]
[1768790065052,0.00016202,92591.0,92575.0,0.20085944]
[1768790065753,0.00016202,92591.0,92572.0,0.09724]
[1768790066347,0.00016202,92591.0,92572.0,0.20596522]
[1768790066547,0.00016202,92591.0,92572.0,0.29809944]
[1768790067552,0.00016202,92591.0,92573.0,0.20085944]
[1768790067754,0.00016202,92591.0,92573.0,0.21166644]
[1768790068057,0.00016202,92591.0,92574.0,0.20085944]
[1768790068455,0.00016202,92591.0,92578.0,0.010806]
[1768790068656,0.00016202,92591.0,92575.0,0.20085944]
[1768790068855,0.00016202,92591.0,92576.0,0.20085944]
[1768790069154,0.00016202,92591.0,92577.0,0.20085944]
[1768790073052,0.00016202,92591.0,92578.0,0.10872522]
[1768790073257,0.00016202,92591.0,92579.0,0.10872522]
[1768790074248,0.11895651,92602.0,92582.0,0.10872522]
[1768790075155,0.09724,92602.0,92588.0,0.10872522]
[1768790076160,0.09724,92602.0,92587.0,0.09213422]
[1768790076558,0.11895651,92617.0,92589.0,0.21166444]
[1768790076758,0.09724,92616.0,92593.0,0.20085944]
[1768790077060,0.010802,92610.0,92593.0,0.20085944]
[1768790077258,0.010803,92608.0,92593.0,0.20085944]
[1768790077462,0.2156217,92613.0,92595.0,0.00016202]
[1768790077763,0.2156217,92612.0,92595.0,0.00016202]
[1768790077963,0.11895651,92611.0,92595.0,0.00016202]
[1768790078366,0.010803,92607.0,92595.0,0.00016202]
[1768790078563,0.010802,92610.0,92595.0,0.00016202]
[1768790078963,0.11895651,92611.0,92595.0,0.00016202]
[1768790079962,0.12975851,92611.0,92595.0,0.00016202]
[1768790080357,0.09682721,92612.0,92583.0,0.09724]
[1768790080358,0.09917507,92604.0,92583.0,0.09724]
[1768790080567,0.11736862,92593.0,92571.0,0.03860385]
[1768790080763,0.11736862,92593.0,92572.0,0.108047]
[1768790081067,0.09917507,92600.0,92579.0,0.2280029]
[1768790081270,0.09724,92601.0,92582.0,0.11917603]
[1768790081567,0.09724,92601.0,92586.0,0.11917603]
[1768790081761,0.00016202,92601.0,92587.0,0.2171969]
[1768790082068,0.00016202,92601.0,92575.0,0.2171969]
[1768790082269,0.00016202,92601.0,92576.0,0.2171969]
[1768790082461,0.00016202,92601.0,92577.0,0.2171969]
[1768790082966,0.00016202,92601.0,92578.0,0.2171969]
[1768790083167,0.00016202,92601.0,92582.0,0.2171969]
[1768790083765,0.00016202,92601.0,92583.0,0.09724]
[1768790084062,0.00016202,92601.0,92583.0,0.21641603]
[1768790084266,0.00016202,92601.0,92585.0,0.2171969]
[1768790084465,0.00016202,92601.0,92587.0,0.2171969]
[1768790085558,0.00016202,92601.0,92589.0,0.2280019]
[1768790085754,0.00016202,92601.0,92590.0,0.2171969]
[1768790087565,0.00016202,92601.0,92586.0,0.11917603]
[1768790088470,0.00016202,92601.0,92586.0,0.2171969]
[1768790088970,0.00016202,92601.0,92587.0,0.11917603]
[1768790091071,0.09961559,92609.0,92587.0,0.2171969]
[1768790091372,0.010803,92607.0,92589.0,0.11917603]
[1768790091673,0.09961559,92609.0,92589.0,0.11917603]
[1768790092167,0.11736862,92608.0,92588.0,0.09802087]
[1768790092363,0.11342792,92605.0,92585.0,0.11933805]
[1768790092563,0.11342792,92604.0,92585.0,0.00016202]
[1768790092965,0.010804,92600.0,92585.0,0.00016202]
[1768790093166,0.11342792,92597.0,92585.0,0.00016202]
[1768790094267,0.10193341,92598.0,92585.0,0.00016202]
[1768790095674,0.09112941,92598.0,92585.0,0.00016202]
[1768790096273,0.11342792,92597.0,92585.0,0.00016202]
[1768790097174,0.09112941,92598.0,92585.0,0.00016202]
[1768790100170,0.11342792,92600.0,92585.0,0.00016202]
[1768790100375,0.20693304,92604.0,92585.0,0.00016202]
[1768790100573,0.11342792,92603.0,92585.0,0.00016202]
[1768790100970,0.20455733,92603.0,92585.0,0.00016202]
[1768790101274,0.010803,92601.0,92585.0,0.00016202]
[1768790101474,0.11342792,92600.0,92585.0,0.00016202]
[1768790101868,0.010804,92599.0,92585.0,0.00016202]
[1768790102070,0.09112941,92593.0,92572.0,0.11584316]
[1768790102268,0.11342792,92592.0,92578.0,0.09724]
[1768790102673,0.11342792,92592.0,92572.0,0.15444701]
[1768790102674,0.10193441,92591.0,92572.0,0.03860385]
[1768790102972,0.20455733,92587.0,92573.0,0.09724]
[1768790103875,0.20455733,92587.0,92571.0,0.03860385]
[1768790104079,0.11342792,92583.0,92570.0,0.13584385]
[1768790104576,0.09724,92599.0,92566.0,0.05823193]
[1768790104577,0.11342792,92577.0,92566.0,0.03860385]
[1768790104773,0.11342792,92576.0,92564.0,0.09724]
[1768790104974,0.11342792,92576.0,92554.0,0.09051459]
[1768790104975,0.11342792,92569.0,92559.0,0.03860385]
[1768790105168,0.20455733,92567.0,92554.0,0.09724]
[1768790105373,0.11342792,92566.0,92554.0,0.09724]
[1768790105777,0.20455733,92564.0,92549.0,0.06060906]
[1768790105981,0.20455733,92563.0,92549.0,0.00237713]
[1768790106572,0.11342792,92562.0,92549.0,0.00237713]
[1768790106772,0.11342792,92562.0,92544.0,0.06060918]
[1768790107077,0.09112941,92561.0,92544.0,0.06060918]
[1768790107287,0.11342792,92555.0,92544.0,0.00237725]
[1768790107487,0.11342792,92554.0,92539.0,0.05823193]
[1768790107983,0.11342792,92554.0,92537.0,0.05823193]
[1768790108184,0.11342792,92554.0,92535.0,0.05823193]
[1768790108773,0.11342792,92550.0,92534.0,0.05823193]
[1768790108972,0.11342792,92549.0,92534.0,0.05823193]
[1768790109188,0.11342792,92549.0,92533.0,0.15547193]
[1768790110284,0.11342792,92549.0,92533.0,0.09724]
[1768790110478,0.11342792,92547.0,92533.0,0.09724]
[1768790110877,0.09112941,92548.0,92533.0,0.09724]
[1768790112273,0.11342792,92551.0,92533.0,0.108051]
[1768790114080,0.09112941,92554.0,92533.0,0.108051]
[1768790114678,0.09112941,92554.0,92533.0,0.16628293]
[1768790114874,0.09112941,92554.0,92538.0,0.010811]
[1768790118097,0.010808,92566.0,92546.0,0.20635775]
[1768790118398,0.02209565,92564.0,92549.0,0.20635775]
[1768790118595,0.02209565,92563.0,92549.0,0.20635775]
[1768790118891,0.09728,92568.0,92549.0,0.20635775]
[1768790119192,0.11342792,92563.0,92544.0,0.09728]
[1768790119396,0.010807,92567.0,92547.0,0.10132459]
[1768790119595,0.02209058,92564.0,92547.0,0.10132459]
[1768790119899,0.21070792,92568.0,92547.0,0.10132459]
[1768790120085,0.02209057,92564.0,92547.0,0.10132459]
[1768790120401,0.21070792,92568.0,92550.0,0.010809]
[1768790120600,0.02208853,92564.0,92547.0,0.09051459]
[1768790120787,0.09728,92568.0,92550.0,0.09051459]
[1768790121994,0.09728,92568.0,92555.0,0.010809]
[1768790123893,6.6e-07,92564.0,92551.0,0.11993339]
[1768790124097,0.09728,92568.0,92555.0,0.010809]
[1768790124304,0.09728,92568.0,92552.0,0.11993339]
[1768790125002,0.09728,92568.0,92553.0,0.010809]
[1768790125201,0.09728,92568.0,92553.0,0.13074239]
[1768790126198,0.09728,92568.0,92556.0,0.010809]
[1768790126600,0.09728,92568.0,92553.0,0.11993339]
[1768790127004,0.09728,92568.0,92555.0,0.14577326]
[1768790127603,0.00237673,92564.0,92555.0,0.14577326]
[1768790128602,0.09728,92568.0,92555.0,0.14577326]
[1768790128603,0.09728,92568.0,92556.0,0.13074239]
[1768790128804,0.09728,92568.0,92558.0,0.14577326]
[1768790129594,0.00237662,92569.0,92558.0,0.26570665]
[1768790129800,0.00237662,92569.0,92558.0,0.27651465]
[1768790130401,0.00237662,92569.0,92558.0,0.13074139]
[1768790130607,0.00237662,92569.0,92559.0,0.14577326]
[1768790130806,0.07754564,92587.0,92568.0,0.11993339]
[1768790130807,0.09728,92583.0,92568.0,0.11993339]
[1768790131008,0.09728,92583.0,92573.0,0.14577326]
[1768790131307,0.09728,92583.0,92570.0,0.14577326]
[1768790132701,0.09728,92583.0,92571.0,0.010807]
[1768790133104,0.09728,92583.0,92570.0,0.14577326]
[1768790135409,0.09728,92583.0,92571.0,0.010807]
[1768790135707,0.09728,92583.0,92567.0,0.09815122]
[1768790135907,0.09728,92583.0,92540.0,0.05823193]
[1768790135908,0.11848984,92580.0,92561.0,0.11993339]
[1768790136212,0.0222756,92579.0,92561.0,0.11993339]
[1768790136408,0.0222756,92578.0,92561.0,0.11993339]
[1768790136607,0.0222756,92577.0,92561.0,0.11993339]
[1768790136912,0.0222756,92576.0,92561.0,0.11993339]
[1768790137212,0.0222756,92575.0,92561.0,0.11993339]
[1768790137411,0.0222756,92574.0,92561.0,0.11993339]
[1768790137610,0.0222756,92573.0,92561.0,0.11993339]
[1768790137807,0.11848984,92580.0,92561.0,0.11993339]
[1768790138008,0.02228094,92579.0,92561.0,0.11993339]
[1768790138204,0.02228094,92578.0,92561.0,0.11993339]
[1768790138404,0.02228094,92577.0,92561.0,0.11993339]
[1768790138708,0.02228094,92576.0,92561.0,0.11993339]
[1768790139006,0.11255964,92579.0,92561.0,0.11993339]
[1768790139007,0.02228094,92575.0,92561.0,0.11993339]
[1768790139313,0.11255964,92579.0,92561.0,0.11993339]
[1768790139314,0.02228094,92574.0,92561.0,0.11993339]
[1768790139504,0.09273484,92581.0,92563.0,0.11094686]
[1768790139705,0.02227795,92580.0,92563.0,0.11094686]
[1768790139906,0.02227795,92579.0,92563.0,0.11094686]
[1768790140104,0.02227795,92578.0,92563.0,0.11094686]
[1768790140305,0.02227795,92577.0,92563.0,0.11094686]
[1768790140511,0.02227795,92576.0,92563.0,0.11094686]
[1768790140814,0.02227795,92575.0,92566.0,0.14577326]
[1768790141115,0.02227795,92574.0,92565.0,0.14577326]
[1768790141315,0.09273484,92581.0,92565.0,0.14577326]
[1768790141515,0.02227433,92580.0,92565.0,0.14577326]